bitfinex/quotes_BTCUSD_20251230
["timestamp","ask_amount","ask_price","bid_price","bid_amount"]
[1767060897105,1e-08,87202.0,87200.0,0.05733942]
[1767060897309,1e-08,87202.0,87201.0,0.01148]
[1767060902244,0.0001801,87212.0,87209.0,0.0114667]
[1767060902490,0.0002881,87212.0,87210.0,0.01148]
[1767060903659,0.0002881,87212.0,87210.0,0.010931]
[1767060908332,0.0002881,87212.0,87210.0,1e-06]
[1767060908970,0.0002881,87212.0,87211.0,0.01148]
[1767060909998,0.0002881,87212.0,87211.0,0.01143676]
[1767060910550,0.1386881,87212.0,87211.0,0.01148]
[1767060911083,0.0002881,87212.0,87211.0,0.01148]
[1767060914289,1e-07,87212.0,87211.0,0.01148]
[1767060914500,1e-07,87212.0,87209.0,0.01148]
[1767060919411,1e-07,87212.0,87209.0,0.0229467]
[1767060920938,1e-07,87212.0,87209.0,0.01148]
[1767060921155,1e-07,87212.0,87209.0,0.0229467]
[1767060921381,1e-07,87212.0,87209.0,0.01148]
[1767060921560,1e-07,87212.0,87209.0,0.0229467]
[1767060922058,1e-07,87212.0,87209.0,0.01148]
[1767060923010,1e-07,87212.0,87210.0,0.05733225]
[1767060925280,1e-07,87212.0,87210.0,0.09118225]
[1767060930294,1e-07,87212.0,87211.0,0.03385]
[1767060931148,0.02476691,87239.0,87211.0,0.03385]
[1767060931149,0.14977,87243.0,87229.0,0.52152628]
[1767060931349,0.01074625,87242.0,87229.0,0.53300628]
[1767060931582,0.01074625,87241.0,87229.0,0.01148]
[1767060931734,0.01074625,87240.0,87229.0,0.01148]
[1767060932091,0.01074625,87239.0,87229.0,0.011192]
[1767060932366,0.01074625,87238.0,87229.0,0.011192]
[1767060932510,0.01074625,87237.0,87229.0,0.011192]
[1767060932706,0.01074625,87236.0,87229.0,0.011192]
[1767060932949,0.149878,87243.0,87229.0,0.011192]
[1767060933132,0.0002213,87236.0,87229.0,0.011192]
[1767060939968,0.149878,87243.0,87229.0,0.011192]
[1767060939969,0.000108,87243.0,87236.0,0.0002197]
[1767060940173,0.01073227,87242.0,87236.0,0.0002197]
[1767060940402,0.01073227,87242.0,87230.0,0.01146394]
[1767060940403,0.000108,87243.0,87229.0,0.02265607]
[1767060940595,0.01073113,87242.0,87230.0,0.01146394]
[1767060940784,0.000108,87243.0,87229.0,0.011192]
[1767060940979,0.01073113,87242.0,87229.0,0.011192]
[1767060941219,0.000108,87243.0,87229.0,0.011192]
[1767060941440,0.01073063,87242.0,87229.0,0.011192]
[1767060941641,0.000108,87243.0,87229.0,0.011192]
[1767060941836,0.01073066,87242.0,87229.0,0.011192]
[1767060942047,0.000108,87243.0,87229.0,0.011192]
[1767060942249,0.01073066,87242.0,87229.0,0.011192]
[1767060942410,0.000108,87243.0,87229.0,0.011192]
[1767060942605,0.000108,87243.0,87230.0,0.01146394]
[1767060942606,0.0107305,87242.0,87230.0,0.01146394]
[1767060942811,0.000108,87243.0,87230.0,0.01146394]
[1767060943638,0.000108,87243.0,87229.0,0.011192]
[1767060944656,0.52097654,87240.0,87229.0,0.011192]
[1767060945171,0.52097654,87240.0,87229.0,2e-06]
[1767060945354,0.52097654,87240.0,87214.0,0.05734604]
[1767060945355,0.14977,87239.0,87224.0,0.01148]
[1767060945549,0.52097654,87234.0,87224.0,0.01148]
[1767060945727,0.52097654,87234.0,87210.0,0.57832311]
[1767060945728,0.14522,87233.0,87217.0,0.01148]
[1767060945914,0.14522,87226.0,87211.0,0.01148]
[1767060946120,0.52097654,87220.0,87211.0,0.01148]
[1767060946322,0.52097654,87220.0,87211.0,0.01143602]
[1767060948783,0.50882698,87220.0,87211.0,0.01143602]
[1767060949990,0.50882698,87220.0,87211.0,0.01139384]
[1767060950391,0.14522,87226.0,87211.0,0.01139384]
[1767060950540,0.52097654,87221.0,87211.0,0.01139384]
[1767060953186,0.14522,87226.0,87211.0,0.01139384]
[1767060953359,0.01073637,87225.0,87211.0,0.01139384]
[1767060953600,0.14522,87226.0,87211.0,0.01139384]
[1767060953799,0.01073637,87225.0,87211.0,0.01139384]
[1767060953980,0.14522,87226.0,87211.0,0.01139384]
[1767060954200,0.01073637,87225.0,87211.0,0.01139384]
[1767060954388,0.14522,87226.0,87211.0,0.01139384]
[1767060954583,0.01073601,87225.0,87211.0,0.01139384]
[1767060954765,0.52097654,87221.0,87211.0,0.01139384]
[1767060956013,0.14522,87226.0,87211.0,0.01139384]
[1767060956221,0.52097654,87221.0,87211.0,0.01139384]
[1767060957893,0.52097654,87221.0,87210.0,0.01148]
[1767060959625,0.04132423,87248.0,87221.0,0.001098]
[1767060959626,0.01148,87231.0,87221.0,0.001098]
[1767060959861,0.13921,87239.0,87219.0,0.58976853]
[1767060960226,0.0222131,87238.0,87221.0,0.01146512]
[1767060960410,0.0107331,87237.0,87222.0,0.01146499]
[1767060960632,3.1e-06,87238.0,87224.0,0.01146473]
[1767060960850,3.1e-06,87238.0,87227.0,0.01146434]
[1767060961057,0.47540654,87240.0,87224.0,0.01146473]
[1767060961211,0.01148,87241.0,87224.0,0.01146473]
[1767060961411,0.01148,87241.0,87225.0,0.0114646]
[1767060962017,0.000108,87243.0,87226.0,0.01146447]
[1767060962243,0.01148,87242.0,87225.0,0.0114646]
[1767060962444,0.01148,87242.0,87226.0,0.01146447]
[1767060962650,0.01148,87242.0,87221.0,0.01146512]
[1767060962899,0.52097654,87240.0,87220.0,0.5324418]
[1767060963051,0.01148,87242.0,87220.0,0.52097654]
[1767060963414,0.52097654,87240.0,87221.0,0.01146512]
[1767060963619,0.52097654,87240.0,87222.0,0.01146499]
[1767060963753,0.52097654,87240.0,87220.0,0.5324418]
[1767060963961,0.01148,87242.0,87221.0,0.01146512]
[1767060964155,0.52097654,87240.0,87221.0,0.01146512]
[1767060965873,0.53245654,87240.0,87222.0,0.01146499]
[1767060966093,0.53245654,87240.0,87223.0,0.01146486]
[1767060966424,0.53245654,87240.0,87221.0,0.01146512]
[1767060966763,0.53245654,87240.0,87220.0,0.5324418]
[1767060966999,0.53245654,87240.0,87221.0,0.01146512]
[1767060967643,0.53245654,87240.0,87220.0,0.52097654]
[1767060968097,0.53245654,87240.0,87218.0,0.01148]
[1767060968686,0.53245654,87240.0,87218.0,0.02294552]
[1767060969453,0.000108,87243.0,87220.0,0.01146526]
[1767060969659,0.52097654,87240.0,87220.0,0.5324418]
[1767060969936,0.53245654,87240.0,87220.0,0.5324418]
[1767060970138,0.53245654,87240.0,87220.0,0.52097654]
[1767060972553,0.01073323,87239.0,87220.0,0.52097654]
[1767060972759,0.53245654,87240.0,87220.0,0.52097654]
[1767060972959,0.01073323,87239.0,87220.0,0.52097654]
[1767060973152,0.53245654,87240.0,87220.0,0.52097654]
[1767060973355,0.01073371,87239.0,87220.0,0.5324418]
[1767060973558,0.53245654,87240.0,87222.0,0.01146499]
[1767060973766,0.0107338,87239.0,87220.0,0.52097654]
[1767060974102,0.53245654,87240.0,87220.0,0.5324418]
[1767060974437,0.0107338,87239.0,87220.0,0.5324418]
[1767060974640,0.53245654,87240.0,87221.0,0.01146512]
[1767060974757,0.01073439,87239.0,87221.0,0.01146512]
[1767060974962,0.53245654,87240.0,87220.0,0.52097654]
[1767060975277,0.01073439,87239.0,87220.0,0.52097654]
[1767060975602,0.01073439,87238.0,87220.0,0.5324418]
[1767060975797,0.53245654,87240.0,87220.0,0.5324418]
[1767060975978,0.01073471,87239.0,87220.0,0.01146526]
[1767060976185,0.01073471,87238.0,87220.0,0.52097654]
[1767060976495,0.53245654,87240.0,87220.0,0.5324418]
[1767060976722,0.01073476,87239.0,87220.0,0.5324418]
[1767060976944,0.01073476,87238.0,87220.0,0.5324418]
[1767060977070,0.53245654,87240.0,87220.0,0.5324418]
[1767060977279,0.01073476,87239.0,87220.0,0.5324418]
[1767060977474,0.01073476,87238.0,87220.0,0.5324418]
[1767060977674,0.53245654,87240.0,87220.0,0.5324418]
[1767060977903,0.01073498,87239.0,87220.0,0.5324418]
[1767060978118,0.01073498,87238.0,87220.0,0.5324418]
[1767060978327,0.53245654,87240.0,87220.0,0.5324418]
[1767060978530,0.01073533,87239.0,87220.0,0.52097654]
[1767060978758,0.01073533,87238.0,87220.0,0.52097654]
[1767060978984,0.53245654,87240.0,87220.0,0.5324418]
[1767060979279,0.01073533,87239.0,87220.0,0.5324418]
[1767060979476,0.01073533,87238.0,87220.0,0.5324418]
[1767060979674,0.53245654,87240.0,87220.0,0.5324418]
[1767060979988,0.01073585,87239.0,87220.0,0.5324418]
[1767060980188,0.01073585,87238.0,87220.0,0.5324418]
[1767060980333,0.53245654,87240.0,87220.0,0.5324418]
[1767060980536,0.01073651,87239.0,87220.0,0.5324418]
[1767060980756,0.01073651,87238.0,87220.0,0.5324418]
[1767060980958,0.53245654,87240.0,87220.0,0.5324418]
[1767060981163,0.01073651,87239.0,87220.0,0.5324418]
[1767060981400,0.01073651,87238.0,87221.0,0.01146512]
[1767060981598,0.53245654,87240.0,87222.0,0.01146499]
[1767060981744,0.01073732,87239.0,87223.0,0.01146486]
[1767060981944,0.01073732,87238.0,87220.0,0.52097654]
[1767060982157,0.53245654,87240.0,87221.0,0.01146512]
[1767060982353,0.01073803,87239.0,87221.0,0.01146512]
[1767060982554,0.01073803,87238.0,87223.0,0.01146486]
[1767060982763,0.53245654,87240.0,87223.0,0.01146486]
[1767060982963,0.01073831,87239.0,87222.0,0.01146499]
[1767060983241,0.01073831,87238.0,87222.0,0.01146499]
[1767060983520,0.01073831,87237.0,87223.0,0.01146486]
[1767060983680,0.53245654,87240.0,87223.0,0.01146486]
[1767060983888,0.0107395,87239.0,87223.0,0.01146486]
[1767060984176,0.0107395,87238.0,87223.0,0.01146486]
[1767060984382,0.0107395,87237.0,87222.0,0.01146499]
[1767060984625,0.53245654,87240.0,87222.0,0.01146499]
[1767060984783,0.0107409,87239.0,87222.0,0.01146499]
[1767060985118,0.0107409,87238.0,87222.0,0.01146499]
[1767060985357,0.0107409,87237.0,87222.0,0.01146499]
[1767060985560,0.0107409,87236.0,87222.0,0.01146499]
[1767060985703,0.53245654,87240.0,87222.0,0.01146499]
[1767060985903,0.01074261,87239.0,87222.0,0.01146499]
[1767060986128,0.01074261,87238.0,87222.0,0.01146499]
[1767060986330,0.01074261,87237.0,87222.0,0.01146499]
[1767060986539,0.01074261,87236.0,87222.0,0.01146499]
[1767060986741,0.53245654,87240.0,87223.0,0.01146486]
[1767060987000,0.01074468,87239.0,87223.0,0.01146486]
[1767060987274,0.01074468,87238.0,87221.0,0.01146512]
[1767060987483,0.01074468,87237.0,87222.0,0.01146499]
[1767060987788,0.01074468,87236.0,87222.0,0.01146499]
[1767060987919,0.01074468,87235.0,87222.0,0.01146499]
[1767060988118,0.53245654,87240.0,87222.0,0.01146499]
[1767060988348,0.01074734,87239.0,87223.0,0.01146486]
[1767060988638,0.01074734,87238.0,87224.0,0.01146473]
[1767060988833,0.01074734,87237.0,87224.0,0.01146473]
[1767060989076,0.01074734,87236.0,87224.0,0.01146473]
[1767060989273,0.01074734,87235.0,87224.0,0.01146473]
[1767060989492,0.01074734,87234.0,87224.0,0.01146473]
[1767060989699,0.01074734,87233.0,87224.0,0.01146473]
[1767060989886,0.53245654,87240.0,87224.0,0.01146473]
[1767060989887,0.01074734,87232.0,87224.0,0.01146473]
[1767060990046,0.53245654,87240.0,87224.0,0.01146473]
[1767060990255,0.0107593,87239.0,87224.0,0.01146473]
[1767060990495,0.0107593,87238.0,87224.0,0.01146473]
[1767060990693,0.0107593,87237.0,87228.0,0.52097654]
[1767060990898,0.01148,87240.0,87228.0,0.52097654]
[1767060990899,0.0107593,87236.0,87228.0,0.52097654]
[1767060991098,0.0107593,87235.0,87231.0,0.01146381]
[1767060991301,0.0104843,87234.0,87230.0,0.01146394]
[1767060991500,0.011588,87243.0,87231.0,0.01146381]
[1767060991710,0.011588,87243.0,87230.0,0.01146394]
[1767060992190,0.011588,87243.0,87230.0,0.53244048]
[1767060992402,0.000108,87243.0,87233.0,0.52097654]
[1767060992615,0.000108,87243.0,87233.0,0.53244009]
[1767060992803,0.000108,87243.0,87231.0,0.01146381]
[1767060993035,0.000108,87243.0,87230.0,0.53244048]
[1767060994305,0.000108,87243.0,87231.0,0.01146381]
[1767060994527,0.000108,87243.0,87230.0,0.53244048]
[1767060994751,0.000108,87243.0,87230.0,0.52097654]
[1767060994967,0.000108,87243.0,87230.0,0.53244048]
[1767060995304,0.000108,87243.0,87231.0,0.01146381]
[1767060996428,0.000108,87243.0,87230.0,0.52097654]
[1767060996661,0.000108,87243.0,87230.0,0.53244048]
[1767060996869,0.000108,87243.0,87231.0,0.01146381]
[1767060997749,0.000108,87243.0,87230.0,0.53244048]
[1767060997965,0.000108,87243.0,87231.0,0.01146381]
[1767060998165,0.000108,87243.0,87230.0,0.52097654]
[1767061000116,0.000108,87243.0,87227.0,0.0116609]
[1767061000316,0.000108,87243.0,87230.0,0.52097654]
[1767061000735,0.52097654,87240.0,87227.0,0.02312524]
[1767061001137,0.52097654,87240.0,87227.0,0.0116609]
[1767061001336,0.000108,87243.0,87227.0,0.0116609]
[1767061002163,0.000108,87243.0,87230.0,0.52097654]
[1767061003232,0.0107519,87242.0,87227.0,0.02312524]
[1767061003435,0.0107519,87241.0,87230.0,0.52097654]
[1767061003614,0.0107519,87240.0,87230.0,0.52097654]
[1767061003797,0.0107519,87239.0,87230.0,0.52097654]
[1767061003998,0.0107519,87238.0,87230.0,0.52097654]
[1767061004203,0.000108,87243.0,87230.0,0.52097654]
[1767061004421,0.52097654,87240.0,87227.0,0.02312524]
[1767061004603,0.01075175,87239.0,87227.0,0.02312524]
[1767061004817,0.01075175,87238.0,87227.0,0.02312524]
[1767061005024,0.52097654,87240.0,87227.0,0.02312524]
[1767061005341,0.01075164,87239.0,87227.0,0.0116609]
[1767061005560,0.01075164,87238.0,87228.0,0.0114642]
[1767061005745,0.52097654,87240.0,87227.0,0.0116609]
[1767061005948,0.01075159,87239.0,87227.0,0.0116609]
[1767061006111,0.01075159,87238.0,87227.0,0.0116609]
[1767061006311,0.52097654,87240.0,87227.0,0.0116609]
[1767061006512,0.01075158,87239.0,87227.0,0.0116609]
[1767061006722,0.01075158,87238.0,87227.0,0.0116609]
[1767061006921,0.000108,87243.0,87227.0,0.0116609]
[1767061007135,0.01075158,87242.0,87227.0,0.0116609]
[1767061007335,0.01075158,87241.0,87227.0,0.0116609]
[1767061007499,0.01075158,87240.0,87227.0,0.0116609]
[1767061007696,0.01075158,87239.0,87227.0,0.0116609]
[1767061007902,0.01075158,87238.0,87227.0,0.0116609]
[1767061008140,0.000108,87243.0,87227.0,0.0116609]
[1767061008340,0.0107516,87242.0,87227.0,0.0116609]
[1767061008540,0.0107516,87241.0,87227.0,0.0116609]
[1767061008748,0.000108,87243.0,87227.0,0.0116609]
[1767061008749,0.0107516,87240.0,87227.0,0.0116609]
[1767061008953,0.0107516,87239.0,87227.0,0.0116609]
[1767061009167,0.0107516,87238.0,87227.0,0.0116609]
[1767061009374,0.000108,87243.0,87227.0,0.0116609]
[1767061009576,0.01075178,87242.0,87227.0,0.0116609]
[1767061009777,0.01075178,87241.0,87227.0,0.0116609]
[1767061009977,0.01075178,87240.0,87227.0,0.0116609]
[1767061010193,0.01075178,87239.0,87227.0,0.0116609]
[1767061010358,0.01075178,87238.0,87227.0,0.0116609]
[1767061010580,0.000108,87243.0,87227.0,0.0116609]
[1767061010877,0.01075194,87242.0,87227.0,0.0116609]
[1767061011114,0.01075194,87241.0,87227.0,0.0116609]
[1767061011228,0.01075194,87240.0,87227.0,0.0116609]
[1767061011432,0.01075194,87239.0,87227.0,0.0116609]
[1767061011759,0.01075194,87238.0,87227.0,0.0116609]
[1767061011966,0.000108,87243.0,87227.0,0.0116609]
[1767061012164,0.01075214,87242.0,87227.0,0.0116609]
[1767061012370,0.01075214,87241.0,87227.0,0.0116609]
[1767061012554,0.000108,87243.0,87227.0,0.0116609]
[1767061012555,0.01075214,87240.0,87227.0,0.0116609]
[1767061012892,0.01075214,87239.0,87228.0,0.0114642]
[1767061013101,0.01075214,87238.0,87229.0,0.01146407]
[1767061013397,0.000108,87243.0,87229.0,0.01146407]
[1767061013594,0.01075267,87242.0,87229.0,0.01146407]
[1767061013773,0.01075267,87241.0,87228.0,0.0114642]
[1767061013977,0.01075267,87240.0,87228.0,0.0114642]
[1767061014179,0.01075267,87239.0,87228.0,0.0114642]
[1767061014345,0.01075267,87238.0,87228.0,0.0114642]
[1767061014547,0.000108,87243.0,87228.0,0.0114642]
[1767061014752,0.010753,87242.0,87228.0,0.0114642]
[1767061014951,0.010753,87241.0,87228.0,0.0114642]
[1767061015147,0.010753,87240.0,87228.0,0.0114642]
[1767061015346,0.010753,87239.0,87228.0,0.0114642]
[1767061015586,0.010753,87238.0,87227.0,0.0116609]
[1767061015811,0.000108,87243.0,87227.0,0.0116609]
[1767061016026,0.01075341,87242.0,87227.0,0.0116609]
[1767061016194,0.01075341,87241.0,87227.0,0.0116609]
[1767061016525,0.01075341,87240.0,87227.0,0.0116609]
[1767061016732,0.01075341,87239.0,87227.0,0.0116609]
[1767061016934,0.01075341,87238.0,87227.0,0.0116609]
[1767061017138,0.000108,87243.0,87227.0,0.0116609]
[1767061017341,0.01075391,87242.0,87227.0,0.0116609]
[1767061017540,0.01075391,87241.0,87227.0,0.0116609]
[1767061017739,0.01075391,87240.0,87227.0,0.0116609]
[1767061018040,0.01075391,87239.0,87227.0,0.02312524]
[1767061018222,0.01075391,87238.0,87227.0,0.02312524]
[1767061018418,0.000108,87243.0,87228.0,0.0114642]
[1767061018605,0.01075527,87242.0,87227.0,0.02312524]
[1767061018807,0.01075527,87241.0,87228.0,0.0114642]
[1767061019011,0.01075527,87240.0,87228.0,0.0114642]
[1767061019238,0.01075527,87239.0,87228.0,0.0114642]
[1767061019438,0.01075527,87238.0,87228.0,0.0114642]
[1767061019631,0.01075527,87237.0,87228.0,0.0114642]
[1767061019841,0.000108,87243.0,87228.0,0.0114642]
[1767061020047,0.01075626,87242.0,87228.0,0.0114642]
[1767061020243,0.01075626,87241.0,87227.0,0.0116609]
[1767061020448,0.01075626,87240.0,87227.0,0.0116609]
[1767061020683,0.01075626,87239.0,87227.0,0.0116609]
[1767061020892,0.01075626,87238.0,87227.0,0.0116609]
[1767061021095,0.01075626,87237.0,87227.0,0.0116609]
[1767061021250,0.000108,87243.0,87227.0,0.0116609]
[1767061021435,0.01075868,87242.0,87227.0,0.0116609]
[1767061021637,0.01075868,87241.0,87227.0,0.0116609]
[1767061021887,0.01075868,87240.0,87227.0,0.0116609]
[1767061022055,0.01075868,87239.0,87227.0,0.0116609]
[1767061022251,0.000108,87243.0,87227.0,0.0116609]
[1767061022252,0.01075868,87238.0,87227.0,0.0116609]
[1767061022472,0.01075868,87237.0,87227.0,0.0116609]
[1767061022693,0.01075868,87236.0,87227.0,0.0116609]
[1767061022992,0.000108,87243.0,87227.0,0.0116609]
[1767061023206,0.01075918,87242.0,87227.0,0.0116609]
[1767061023514,0.01075918,87241.0,87227.0,0.0116609]
[1767061023659,0.01075918,87240.0,87227.0,0.0116609]
[1767061023859,0.01075918,87239.0,87227.0,0.0116609]
[1767061024056,0.01075918,87238.0,87227.0,0.0116609]
[1767061024326,0.01075918,87237.0,87227.0,0.0116609]
[1767061024473,0.01075918,87236.0,87227.0,0.0116609]
[1767061024674,0.000108,87243.0,87227.0,0.0116609]
[1767061024874,0.01075945,87242.0,87227.0,0.0116609]
[1767061025074,0.01075945,87241.0,87227.0,0.02312524]
[1767061025276,0.01075945,87240.0,87227.0,0.02312524]
[1767061025477,0.01075945,87239.0,87227.0,0.02312524]
[1767061025698,0.01075945,87238.0,87227.0,0.0116609]
[1767061025893,0.01075945,87237.0,87227.0,0.0116609]
[1767061026100,0.01075945,87236.0,87227.0,0.02312524]
[1767061026260,0.000108,87243.0,87227.0,0.0116609]
[1767061026455,0.01075969,87242.0,87227.0,0.0116609]
[1767061026713,0.01075969,87241.0,87227.0,0.02312524]
[1767061026922,0.01075969,87240.0,87227.0,0.02312524]
[1767061027220,0.000108,87243.0,87227.0,0.02312524]
[1767061027221,0.01075969,87239.0,87227.0,0.02312524]
[1767061027390,0.01075969,87238.0,87227.0,0.02312524]
[1767061027591,0.01075969,87237.0,87227.0,0.02312524]
[1767061027798,0.01075969,87236.0,87227.0,0.0116609]
[1767061027998,0.000108,87243.0,87227.0,0.0116609]
[1767061028242,0.01075969,87242.0,87227.0,0.0116609]
[1767061028441,0.01075969,87241.0,87227.0,0.0116609]
[1767061028619,0.01075969,87240.0,87227.0,0.0116609]
[1767061028814,0.01075969,87239.0,87227.0,0.0116609]
[1767061029024,0.01075969,87238.0,87227.0,0.02312524]
[1767061029200,0.01075969,87237.0,87227.0,0.02312524]
[1767061029400,0.000108,87243.0,87227.0,0.0116609]
[1767061029401,0.01075969,87236.0,87227.0,0.0116609]
[1767061029597,0.000108,87243.0,87227.0,0.0116609]
[1767061029811,0.01075976,87242.0,87227.0,0.0116609]
[1767061030003,0.01075976,87241.0,87227.0,0.0116609]
[1767061030203,0.01075976,87240.0,87227.0,0.0116609]
[1767061030421,0.01075976,87239.0,87227.0,0.0116609]
[1767061030775,0.01075976,87238.0,87227.0,0.0116609]
[1767061030962,0.01075976,87237.0,87227.0,0.0116609]
[1767061031131,0.01075976,87236.0,87227.0,0.0116609]
[1767061031328,0.000108,87243.0,87227.0,0.0116609]
[1767061031530,0.01075978,87242.0,87227.0,0.0116609]
[1767061031727,0.52100829,87240.0,87227.0,0.0116609]
[1767061031928,0.01075978,87239.0,87227.0,0.0116609]
[1767061032137,0.01075978,87238.0,87227.0,0.0116609]
[1767061032476,0.01075978,87237.0,87227.0,0.0116609]
[1767061032651,0.01075978,87236.0,87227.0,0.0116609]
[1767061032856,0.01075978,87235.0,87227.0,0.0116609]
[1767061033060,0.01075978,87234.0,87227.0,0.0116609]
[1767061033243,0.14902,87241.0,87227.0,0.0116609]
[1767061033244,0.52100829,87240.0,87227.0,0.0116609]
[1767061033582,0.01075792,87239.0,87227.0,0.0116609]
[1767061033782,0.01075792,87238.0,87227.0,0.0116609]
[1767061033962,0.01075792,87237.0,87227.0,0.0116609]
[1767061034144,0.01075792,87236.0,87227.0,0.0116609]
[1767061034340,0.01075792,87235.0,87227.0,0.0116609]
[1767061034567,0.01075792,87234.0,87227.0,0.0116609]
[1767061034777,0.14902,87241.0,87227.0,0.0116609]
[1767061035011,0.01075733,87240.0,87227.0,0.0116609]
[1767061035313,0.01075733,87239.0,87227.0,0.0116609]
[1767061035508,0.01075733,87238.0,87227.0,0.0116609]
[1767061035715,0.01075733,87237.0,87227.0,0.0116609]
[1767061035889,0.01075733,87236.0,87227.0,0.0116609]
[1767061036094,0.01075733,87235.0,87227.0,0.0116609]
[1767061036295,0.01075733,87234.0,87227.0,0.0116609]
[1767061036608,0.14902,87241.0,87227.0,0.0116609]
[1767061036833,0.01075653,87240.0,87227.0,0.0116609]
[1767061037133,0.01075653,87239.0,87227.0,0.0116609]
[1767061037334,0.01075653,87238.0,87227.0,0.0116609]
[1767061037464,0.01075653,87237.0,87227.0,0.0116609]
[1767061037660,0.01075653,87236.0,87227.0,0.0116609]
[1767061037898,0.01075653,87235.0,87227.0,0.0116609]
[1767061038122,0.14902,87241.0,87227.0,0.0116609]
[1767061038339,0.01075606,87240.0,87227.0,0.0116609]
[1767061038542,0.01075606,87239.0,87227.0,0.0116609]
[1767061038703,0.01075606,87238.0,87227.0,0.0116609]
[1767061038903,0.01075606,87237.0,87227.0,0.0116609]
[1767061039132,0.01075606,87236.0,87227.0,0.0116609]
[1767061039429,0.01075606,87235.0,87227.0,0.0116609]
[1767061039626,0.14902,87241.0,87227.0,0.0116609]
[1767061039831,0.01075579,87240.0,87227.0,0.0116609]
[1767061040143,0.01075579,87239.0,87227.0,0.0116609]
[1767061040344,0.01075579,87238.0,87227.0,0.0116609]
[1767061040487,0.01075579,87237.0,87227.0,0.0116609]
[1767061040687,0.01075579,87236.0,87227.0,0.0116609]
[1767061040896,0.01075579,87235.0,87227.0,0.0116609]
[1767061041159,0.52100829,87240.0,87227.0,0.0116609]
[1767061041315,0.01075551,87239.0,87227.0,0.0116609]
[1767061041518,0.01075551,87238.0,87227.0,0.0116609]
[1767061041717,0.01075551,87237.0,87227.0,0.0116609]
[1767061041918,0.01075551,87236.0,87227.0,0.0116609]
[1767061042120,0.01075551,87235.0,87227.0,0.0116609]
[1767061042315,0.52100829,87240.0,87227.0,0.0116609]
[1767061042677,0.01075534,87239.0,87227.0,0.0116609]
[1767061042876,0.01075534,87238.0,87227.0,0.0116609]
[1767061043078,0.01075534,87237.0,87227.0,0.0116609]
[1767061043227,0.01075534,87236.0,87227.0,0.0116609]
[1767061043435,0.01075534,87235.0,87227.0,0.0116609]
[1767061043639,0.52100829,87240.0,87227.0,0.0116609]
[1767061043952,0.01075525,87239.0,87227.0,0.0116609]
[1767061044139,0.01075525,87238.0,87227.0,0.0116609]
[1767061044473,0.01075525,87237.0,87227.0,0.0116609]
[1767061044678,0.01075525,87236.0,87227.0,0.0116609]
[1767061044890,0.01075525,87235.0,87227.0,0.0116609]
[1767061045041,0.52100829,87240.0,87227.0,0.0116609]
[1767061045242,0.01075521,87239.0,87227.0,0.0116609]
[1767061045584,0.01075521,87238.0,87227.0,0.0116609]
[1767061045731,0.01075521,87237.0,87227.0,0.0116609]
[1767061045954,0.01075521,87236.0,87227.0,0.0116609]
[1767061046163,0.01075521,87235.0,87227.0,0.0116609]
[1767061046364,0.52100829,87240.0,87227.0,0.0116609]
[1767061046693,0.0107552,87239.0,87227.0,0.0116609]
[1767061047007,0.0107552,87238.0,87227.0,0.0116609]
[1767061047235,0.0107552,87237.0,87227.0,0.0116609]
[1767061047383,0.0107552,87236.0,87227.0,0.0116609]
[1767061047583,0.0107552,87235.0,87227.0,0.0116609]
[1767061047783,0.52100829,87240.0,87227.0,0.0116609]
[1767061047984,0.01075524,87239.0,87227.0,0.0116609]
[1767061048225,0.01075524,87238.0,87227.0,0.0116609]
[1767061048422,0.01075524,87237.0,87227.0,0.0116609]
[1767061048601,0.01075524,87236.0,87227.0,0.0116609]
[1767061048825,0.01075524,87235.0,87227.0,0.0116609]
[1767061049026,0.52100829,87240.0,87227.0,0.0116609]
[1767061049228,0.0107553,87239.0,87227.0,0.0116609]
[1767061049427,0.0107553,87238.0,87227.0,0.0116609]
[1767061049627,0.0107553,87237.0,87227.0,0.0116609]
[1767061049804,0.0107553,87236.0,87227.0,0.0116609]
[1767061050023,0.0107553,87235.0,87227.0,0.0116609]
[1767061050383,0.52100829,87240.0,87227.0,0.0116609]
[1767061050503,0.01075541,87239.0,87227.0,0.0116609]
[1767061050707,0.01075541,87238.0,87227.0,0.0116609]
[1767061050946,0.01075541,87237.0,87227.0,0.0116609]
[1767061051125,0.01075541,87236.0,87227.0,0.0116609]
[1767061051335,0.01075541,87235.0,87227.0,0.0116609]
[1767061051535,0.52100829,87240.0,87227.0,0.0116609]
[1767061051760,0.01075552,87239.0,87227.0,0.0116609]
[1767061051921,0.01075552,87238.0,87227.0,0.0116609]
[1767061052119,0.01075552,87237.0,87227.0,0.0116609]
[1767061052325,0.01075552,87236.0,87227.0,0.0116609]
[1767061052523,0.01075552,87235.0,87227.0,0.0116609]
[1767061052724,0.52100829,87240.0,87227.0,0.0116609]
[1767061052944,0.01075566,87239.0,87227.0,0.0116609]
[1767061053281,0.01075566,87238.0,87227.0,0.0116609]
[1767061053444,0.01075566,87237.0,87227.0,0.0116609]
[1767061053654,0.01075566,87236.0,87227.0,0.0116609]
[1767061053830,0.01075566,87235.0,87227.0,0.0116609]
[1767061054013,0.52100829,87240.0,87227.0,0.0116609]
[1767061054211,0.01075583,87239.0,87227.0,0.0116609]
[1767061054414,0.01075583,87238.0,87227.0,0.0116609]
[1767061054658,0.01075583,87237.0,87227.0,0.0116609]
[1767061054853,0.01075583,87236.0,87227.0,0.0116609]
[1767061055078,0.01075583,87235.0,87227.0,0.0116609]
[1767061055245,0.52100829,87240.0,87227.0,0.0116609]
[1767061055581,0.01075628,87239.0,87227.0,0.0116609]
[1767061055780,0.01075628,87238.0,87227.0,0.0116609]
[1767061055987,0.01075628,87237.0,87227.0,0.0116609]
[1767061056166,0.01075628,87236.0,87227.0,0.0116609]
[1767061056333,0.01075628,87235.0,87227.0,0.0116609]
[1767061056533,0.01075628,87234.0,87227.0,0.0116609]
[1767061056840,0.52100829,87240.0,87227.0,0.0116609]
[1767061057039,0.01075655,87239.0,87227.0,0.0116609]
[1767061057256,0.01075655,87238.0,87227.0,0.0116609]
[1767061057474,0.01075655,87237.0,87227.0,0.0116609]
[1767061057674,0.01075655,87236.0,87227.0,0.0116609]
[1767061057878,0.01075655,87235.0,87227.0,0.0116609]
[1767061058076,0.01075655,87234.0,87227.0,0.0116609]
[1767061058241,0.52100829,87240.0,87227.0,0.0116609]
[1767061058450,0.01075733,87239.0,87227.0,0.0116609]
[1767061058650,0.01075733,87238.0,87227.0,0.0116609]
[1767061058851,0.01075733,87237.0,87227.0,0.0116609]
[1767061059121,0.01075733,87236.0,87227.0,0.0116609]
[1767061059326,0.01075733,87235.0,87227.0,0.0116609]
[1767061059526,0.01075733,87234.0,87227.0,0.0116609]
[1767061059648,0.52100829,87240.0,87227.0,0.0116609]
[1767061059848,0.01075785,87239.0,87227.0,0.0116609]
[1767061060054,0.01075785,87238.0,87227.0,0.0116609]
[1767061060292,0.01075785,87237.0,87227.0,0.0116609]
[1767061060549,0.14902,87241.0,87227.0,0.0116609]